bitfinex-derivatives/quotes_BTCF0:USTF0_20240815
["timestamp","ask_amount","ask_price","bid_price","bid_amount"]
[1723759271537,0.001,57538.0,57537.0,0.88446073]
[1723759271933,0.001,57538.0,57537.0,1.28446073]
[1723759272134,0.00026073,57547.0,57537.0,1.28446073]
[1723759272340,0.00026073,57547.0,57546.0,0.3608]
[1723759273336,0.01516345,57574.0,57546.0,1.58242]
[1723759273538,0.043408,57579.0,57567.0,0.3608]
[1723759273742,0.404208,57579.0,57567.0,0.3608]
[1723759274437,0.404208,57579.0,57567.0,0.36106073]
[1723759274438,0.001,57568.0,57567.0,0.36106073]
[1723759274644,0.004,57568.0,57567.0,0.36106073]
[1723759275146,0.003,57568.0,57567.0,0.36106073]
[1723759276543,0.043411,57575.0,57567.0,0.36106073]
[1723759277250,0.003,57568.0,57567.0,0.36106073]
[1723759277445,0.008,57568.0,57567.0,0.36106073]
[1723759277842,0.005,57568.0,57567.0,0.36106073]
[1723759278249,0.043412,57573.0,57567.0,0.36106073]
[1723759278547,0.004,57568.0,57567.0,0.36106073]
[1723759279245,0.004,57568.0,57567.0,0.00026073]
[1723759280438,0.009,57568.0,57567.0,0.00026073]
[1723759280741,0.052416,57568.0,57567.0,0.00026073]
[1723759281343,0.052416,57568.0,57556.0,0.36304]
[1723759281344,0.043424,57557.0,57556.0,0.36304]
[1723759281544,0.043424,57557.0,57556.0,0.3608]
[1723759282949,0.044424,57557.0,57556.0,0.3668]
[1723759283645,0.001,57557.0,57556.0,0.3668]
[1723759283848,0.002,57557.0,57556.0,0.3718]
[1723759284353,0.022,57557.0,57556.0,0.3718]
[1723759285263,0.065424,57557.0,57556.0,0.3718]
[1723759285846,0.045424,57557.0,57556.0,0.3718]
[1723759286056,0.055424,57557.0,57556.0,0.3718]
[1723759286755,0.045424,57557.0,57556.0,0.3718]
[1723759286951,0.055424,57557.0,57556.0,0.3718]
[1723759287343,0.045424,57557.0,57556.0,0.3718]
[1723759287544,0.002,57557.0,57556.0,0.3718]
[1723759289353,0.055424,57557.0,57556.0,0.3718]
[1723759289752,0.055424,57557.0,57536.0,0.0507285]
[1723759289753,1.11355553,57557.0,57536.0,0.0507285]
[1723759289951,0.043439,57537.0,57536.0,0.00021159]
[1723759290153,0.01,57537.0,57518.0,0.1629]
[1723759290373,0.043452,57521.0,57518.0,0.1629]
[1723759290661,0.25328,57537.0,57518.0,0.1629]
[1723759290662,0.3608,57522.0,57518.0,0.1629]
[1723759290956,0.404252,57520.0,57518.0,0.1629]
[1723759291156,0.00013933,57519.0,57509.0,0.3608]
[1723759291348,0.043456,57515.0,57509.0,0.3608]
[1723759291549,0.043457,57513.0,57509.0,0.3608]
[1723759292155,0.00013933,57519.0,57509.0,0.3608]
[1723759292656,0.043458,57513.0,57509.0,0.3608]
[1723759292957,0.044458,57513.0,57509.0,0.3608]
[1723759293560,0.043458,57513.0,57509.0,0.3608]
[1723759293750,0.043459,57511.0,57499.0,0.043468]
[1723759294348,0.36206073,57513.0,57499.0,0.043468]
[1723759294349,0.3608,57505.0,57499.0,0.043468]
[1723759294552,0.00020848,57504.0,57499.0,0.043468]
[1723759294762,0.00020848,57504.0,57492.0,0.1583]
[1723759294763,0.04367348,57504.0,57492.0,0.1583]
[1723759295258,0.00020848,57504.0,57492.0,0.1583]
[1723759295560,0.3608,57493.0,57492.0,0.1583]
[1723759295770,0.36101159,57493.0,57492.0,0.1583]
[1723759296759,0.36201159,57493.0,57492.0,0.1583]
[1723759297357,0.36201159,57493.0,57492.0,1.4409]
[1723759297358,0.001,57493.0,57492.0,1.4409]
[1723759297560,0.00026073,57498.0,57492.0,1.4409]
[1723759297862,0.3608,57514.0,57505.0,0.043463]
[1723759298462,0.404257,57514.0,57505.0,0.043463]
[1723759299163,0.404257,57514.0,57504.0,0.36106073]
[1723759299164,0.3608,57514.0,57509.0,0.3608]
[1723759299366,0.3608,57514.0,57510.0,0.1652]
[1723759299959,0.3618,57514.0,57510.0,0.1652]
[1723759300665,0.00026073,57515.0,57512.0,0.043458]
[1723759300864,0.001,57514.0,57512.0,0.043458]
[1723759301063,0.001,57514.0,57513.0,0.5216]
[1723759301461,0.002,57514.0,57513.0,0.5216]
[1723759301769,0.704824,57558.0,57514.0,0.5216]
[1723759302067,0.043424,57557.0,57539.0,0.3608]
[1723759302462,0.3608,57558.0,57541.0,0.043436]
[1723759302664,0.043428,57552.0,57539.0,0.3608]
[1723759302863,0.043428,57552.0,57544.0,0.00026073]
[1723759303060,0.043428,57552.0,57544.0,0.36106073]
[1723759303867,0.00026073,57555.0,57544.0,0.36106073]
[1723759304167,0.001,57552.0,57547.0,0.043432]
[1723759304773,0.002,57552.0,57547.0,0.043432]
[1723759305162,0.002,57552.0,57544.0,0.36206073]
[1723759305163,0.002,57552.0,57550.0,0.404229]
[1723759305469,0.00026073,57555.0,57550.0,0.404229]
[1723759306865,0.00026073,57555.0,57550.0,0.409229]
[1723759307873,0.00026073,57555.0,57550.0,0.3658]
[1723759308175,0.00026073,57555.0,57553.0,0.043427]
[1723759309366,0.00026073,57555.0,57553.0,0.047427]
[1723759309571,0.00126073,57555.0,57553.0,0.053427]
[1723759309973,0.00126073,57555.0,57553.0,0.056427]
[1723759310866,0.00126073,57555.0,57553.0,0.013]
[1723759311875,0.043426,57554.0,57553.0,0.013]
[1723759312077,0.043433,57545.0,57544.0,0.36106073]
[1723759312279,0.3608,57554.0,57544.0,0.36106073]
[1723759312573,0.1656,57553.0,57544.0,0.36106073]
[1723759312781,0.3856,57553.0,57544.0,0.36106073]
[1723759313167,0.3856,57553.0,57544.0,0.01226073]
[1723759313168,0.001,57545.0,57544.0,0.01226073]
[1723759313482,0.001,57545.0,57533.0,0.3608]
[1723759313970,0.043437,57540.0,57533.0,0.3608]
[1723759314782,0.043439,57538.0,57533.0,0.3608]
[1723759315181,0.00026073,57542.0,57533.0,0.3608]
[1723759315380,0.02026073,57542.0,57533.0,0.3608]
[1723759315575,0.001,57540.0,57533.0,0.3628]
[1723759315773,0.043441,57534.0,57533.0,0.3628]
[1723759316081,0.043441,57534.0,57506.0,0.05051691]
[1723759316082,0.043451,57521.0,57509.0,0.40426]
[1723759316284,0.3608,57527.0,57509.0,0.3608]
[1723759316472,0.3608,57522.0,57509.0,0.3608]
[1723759316778,0.3608,57521.0,57509.0,0.3608]
[1723759316974,0.043455,57516.0,57509.0,0.3608]
[1723759317180,0.3608,57510.0,57500.0,0.3608]
[1723759317378,0.043461,57508.0,57500.0,0.3608]
[1723759317585,0.3608,57516.0,57500.0,0.3608]
[1723759317977,0.3608,57516.0,57502.0,0.043466]
[1723759318377,0.3608,57516.0,57503.0,0.043465]
[1723759318777,0.3618,57516.0,57509.0,0.006]
[1723759319184,0.405255,57516.0,57509.0,0.006]
[1723759319375,0.406255,57516.0,57503.0,0.043465]
[1723759319975,0.405255,57516.0,57509.0,0.004]
[1723759320179,0.406255,57516.0,57509.0,0.004]
[1723759320776,0.043456,57515.0,57509.0,0.004]
[1723759321596,0.3628,57516.0,57505.0,0.3608]
[1723759321784,0.002,57516.0,57505.0,0.3608]
[1723759321985,0.001,57516.0,57505.0,0.3608]
[1723759322179,0.001,57515.0,57507.0,0.043462]
[1723759322784,0.001,57515.0,57505.0,0.3608]
[1723759323081,0.044456,57515.0,57509.0,0.006]
[1723759323284,0.043459,57511.0,57509.0,0.006]
[1723759323479,0.044456,57515.0,57507.0,0.006]
[1723759323480,0.001,57515.0,57507.0,0.006]
[1723759325187,0.001,57515.0,57507.0,0.049462]
[1723759325391,0.001,57515.0,57507.0,0.043462]
[1723759325600,0.002,57515.0,57505.0,0.3668]
[1723759325801,0.043457,57514.0,57505.0,0.3668]
[1723759325988,0.043457,57514.0,57507.0,0.006]
[1723759326182,0.043458,57513.0,57507.0,0.006]
[1723759326898,0.043458,57512.0,57507.0,0.006]
[1723759327096,0.043459,57511.0,57507.0,0.006]
[1723759327291,0.04346,57510.0,57507.0,0.006]
[1723759328698,0.04346,57510.0,57505.0,0.3608]
[1723759328995,0.04446,57510.0,57507.0,0.006]
[1723759329699,0.002,57510.0,57507.0,0.006]
[1723759330100,0.3608,57508.0,57505.0,0.006]
[1723759330401,0.3608,57508.0,57489.0,0.30070876]
[1723759330402,0.00026073,57504.0,57489.0,0.00020876]
[1723759330600,0.3608,57498.0,57489.0,0.00020876]
[1723759331105,0.04347,57497.0,57489.0,0.00020876]
[1723759332108,0.3608,57498.0,57489.0,0.00020876]
[1723759332293,0.043472,57495.0,57489.0,0.00020876]
[1723759332489,0.043472,57495.0,57489.0,0.00520876]
[1723759333804,0.044472,57495.0,57489.0,0.00520876]
[1723759334105,0.043472,57494.0,57489.0,0.00520876]
[1723759334299,0.043473,57493.0,57489.0,0.00520876]
[1723759334802,0.043473,57493.0,57489.0,0.00020876]
[1723759335605,0.001,57493.0,57489.0,0.00020876]
[1723759336102,0.002,57493.0,57489.0,0.00020876]
[1723759337296,0.043475,57490.0,57489.0,0.00020876]
[1723759338294,0.044475,57490.0,57489.0,0.00020876]
[1723759338696,0.045475,57490.0,57489.0,0.00020876]
[1723759342196,0.002,57490.0,57489.0,0.00020876]
[1723759342401,0.002,57490.0,57489.0,0.04368376]
[1723759342594,0.00026073,57504.0,57503.0,0.043465]
[1723759342800,0.00026073,57504.0,57503.0,0.404265]
[1723759343197,1e-08,57504.0,57503.0,0.404265]
[1723759343397,1e-08,57504.0,57503.0,0.3608]
[1723759343596,1e-08,57504.0,57499.0,0.3608]
[1723759343597,0.043467,57500.0,57499.0,0.3608]
[1723759344196,0.043472,57494.0,57489.0,0.00020876]
[1723759344398,0.40426401,57504.0,57489.0,0.01439608]
[1723759344597,0.3608,57498.0,57489.0,0.01439608]
[1723759344793,0.01525159,57504.0,57497.0,0.3608]
[1723759345108,0.043446,57528.0,57503.0,0.7216]
[1723759345304,0.043446,57528.0,57527.0,0.3608]
[1723759345704,0.374606,57540.0,57526.0,0.3608]
[1723759345705,0.043447,57527.0,57526.0,0.3608]
[1723759346404,0.043447,57527.0,57521.0,0.00026073]
[1723759346405,0.04345,57523.0,57521.0,0.00026073]
[1723759346600,0.3608,57522.0,57521.0,0.00026073]
[1723759347199,0.3618,57528.0,57521.0,0.00026073]
[1723759347701,0.3608,57522.0,57521.0,0.00026073]
[1723759348004,0.3608,57524.0,57521.0,0.00026073]
[1723759348317,0.3608,57524.0,57521.0,0.00126073]
[1723759348602,0.002,57528.0,57521.0,0.00126073]
[1723759348807,0.002,57528.0,57511.0,0.3608]
[1723759348808,0.3608,57522.0,57511.0,0.3608]
[1723759348994,0.67352,57528.0,57511.0,0.3608]
[1723759348995,0.002,57528.0,57511.0,0.3608]
[1723759349199,0.043447,57527.0,57516.0,0.043455]
[1723759349394,0.3608,57524.0,57511.0,0.3608]
[1723759349694,0.043453,57519.0,57511.0,0.3608]
[1723759349895,0.3608,57524.0,57511.0,0.3608]
[1723759350107,0.043445,57529.0,57511.0,0.41137939]
[1723759350304,0.043446,57528.0,57523.0,0.3608]
[1723759350503,0.24348,57533.0,57511.0,0.41137939]
[1723759350698,0.3608,57525.0,57511.0,0.3608]
[1723759351100,0.043454,57518.0,57511.0,0.3608]
[1723759352107,0.043454,57517.0,57511.0,0.3608]
[1723759352307,0.36106073,57520.0,57511.0,0.3608]
[1723759352508,0.36106073,57520.0,57518.0,0.043453]
[1723759353106,0.00026073,57520.0,57511.0,0.3608]
[1723759353408,0.043457,57514.0,57508.0,0.00224]
[1723759353707,0.043457,57514.0,57501.0,0.6613]
[1723759354210,0.043457,57514.0,57508.0,0.043461]
[1723759354398,0.043457,57514.0,57501.0,0.6613]
[1723759354399,0.001,57518.0,57501.0,0.6613]
[1723759354596,0.044454,57518.0,57501.0,0.6613]
[1723759354811,0.044454,57518.0,57511.0,0.3608]
[1723759355009,0.00126073,57520.0,57516.0,0.3608]
[1723759355212,0.00126073,57520.0,57519.0,0.404253]
[1723759355417,0.3608,57537.0,57519.0,0.3608]
[1723759355599,0.3608,57537.0,57519.0,0.404252]
[1723759355600,0.22,57537.0,57519.0,0.404252]
[1723759355800,0.22,57537.0,57519.0,0.3608]
[1723759356112,0.001,57518.0,57517.0,0.1675]
[1723759356310,0.001,57518.0,57517.0,0.5283]
[1723759356508,0.00026073,57523.0,57517.0,1.4499]
[1723759356707,0.00026073,57523.0,57522.0,0.3608]
[1723759357009,0.00026073,57523.0,57522.0,0.404251]
[1723759357702,1e-08,57523.0,57522.0,1.325771]
[1723759357905,0.043441,57535.0,57528.0,0.043446]
[1723759358105,0.001,57537.0,57522.0,0.3608]
[1723759358106,0.3608,57532.0,57522.0,0.3608]
[1723759358304,0.04445,57523.0,57522.0,0.3608]
[1723759359210,0.001,57523.0,57522.0,0.3608]
[1723759359415,0.00026073,57528.0,57527.0,0.043447]
[1723759359803,0.00026073,57528.0,57522.0,0.40425]
[1723759360508,0.00026073,57528.0,57522.0,0.3608]
[1723759360509,0.04345,57523.0,57522.0,0.3608]
[1723759361105,0.001,57523.0,57522.0,0.3628]
[1723759361303,0.043427,57554.0,57523.0,0.52152]
[1723759361507,0.043427,57553.0,57541.0,0.3608]
[1723759361707,0.043429,57552.0,57543.0,0.043434]
[1723759361904,0.3608,57552.0,57541.0,0.3608]
[1723759362203,0.3608,57552.0,57540.0,0.3005]
[1723759362400,0.404228,57552.0,57542.0,0.043435]
[1723759362619,0.04343,57549.0,57541.0,0.3608]
[1723759362802,0.00026073,57552.0,57545.0,0.043433]
[1723759363112,0.00026073,57552.0,57546.0,0.404232]
[1723759363513,0.00026073,57552.0,57541.0,0.3608]
[1723759363815,0.043432,57546.0,57541.0,0.3608]
[1723759364115,0.3608,57543.0,57540.0,0.00026073]
[1723759364307,0.043435,57542.0,57540.0,0.00026073]
[1723759365213,0.05723555,57542.0,57540.0,0.00026073]
[1723759365809,0.05723555,57542.0,57541.0,0.001]
[1723759366011,0.043435,57542.0,57541.0,0.001]
[1723759366511,0.043436,57541.0,57540.0,0.00326073]
[1723759367107,0.063436,57541.0,57540.0,0.00326073]
[1723759367307,1.10136,57541.0,57521.0,0.3608]
[1723759367609,0.043448,57525.0,57521.0,0.3608]
[1723759368308,0.043451,57522.0,57521.0,0.3608]
[1723759369214,0.404251,57522.0,57517.0,0.00026073]
[1723759369715,0.407251,57522.0,57517.0,0.00026073]
[1723759370514,0.003,57522.0,57517.0,0.00026073]
[1723759371308,0.007,57522.0,57520.0,0.043452]
[1723759371501,0.007,57522.0,57517.0,0.00026073]
[1723759371707,0.008,57522.0,57517.0,0.00026073]
[1723759372114,0.00026073,57529.0,57517.0,0.00026073]
[1723759372115,1e-08,57529.0,57528.0,0.043446]
[1723759372307,0.01368254,57551.0,57533.0,0.3005]
[1723759372617,0.043429,57550.0,57537.0,0.3608]
[1723759372812,0.3608,57554.0,57542.0,0.3608]
[1723759373016,0.3608,57554.0,57546.0,0.043432]
[1723759373017,0.043428,57552.0,57546.0,0.043432]
[1723759373215,0.043428,57552.0,57547.0,0.043431]
[1723759373611,0.3608,57554.0,57549.0,0.3608]
[1723759374212,0.00026073,57555.0,57549.0,0.3608]
[1723759374413,0.00026073,57555.0,57552.0,0.043428]
[1723759374608,0.00026073,57555.0,57554.0,0.704726]
[1723759374916,0.00026073,57555.0,57554.0,1.625966]
[1723759375506,7.3e-07,57555.0,57554.0,1.625966]
[1723759375707,0.01377324,57573.0,57554.0,1.58254]
[1723759375914,0.3608,57570.0,57560.0,0.3608]
[1723759376107,0.043415,57569.0,57560.0,0.3608]
[1723759376313,0.3608,57571.0,57560.0,0.3608]
[1723759376705,0.3608,57571.0,57550.0,0.3162]
[1723759376706,0.3608,57561.0,57550.0,0.1572]
[1723759376906,0.043423,57559.0,57549.0,0.40423]
[1723759377111,0.043423,57559.0,57550.0,0.00026073]
[1723759377616,0.043423,57559.0,57550.0,0.04368973]
[1723759378419,0.003,57555.0,57554.0,0.3608]
[1723759379106,0.3608,57569.0,57552.0,0.043427]
[1723759379312,0.043421,57561.0,57552.0,0.043427]
[1723759379510,0.00026073,57566.0,57550.0,0.00526073]
[1723759379711,0.043424,57557.0,57550.0,0.00526073]
[1723759380222,0.003,57555.0,57550.0,0.00326073]
[1723759380610,0.00026073,57566.0,57554.0,0.6613]
[1723759380821,0.00026073,57566.0,57560.0,0.3608]
[1723759381017,0.00026073,57566.0,57563.0,0.043419]
[1723759381222,0.00026073,57566.0,57560.0,0.3608]
[1723759381223,0.00026073,57566.0,57564.0,0.043419]
[1723759382018,0.00126073,57566.0,57564.0,0.043419]
[1723759382518,0.00226073,57566.0,57564.0,0.043419]
[1723759382715,0.00626073,57566.0,57564.0,0.043419]
[1723759383025,0.00626073,57566.0,57565.0,0.3608]
[1723759384412,0.00826073,57566.0,57565.0,0.3608]
[1723759385213,0.00826073,57566.0,57565.0,0.404218]
[1723759386014,0.00826073,57566.0,57565.0,0.925378]
[1723759387619,0.00826073,57566.0,57565.0,1.225878]
[1723759390515,0.00826073,57566.0,57565.0,0.704718]
[1723759391227,0.00826073,57566.0,57559.0,0.3608]
[1723759391425,0.00826073,57566.0,57563.0,0.043419]
[1723759391726,0.00826073,57566.0,57559.0,0.404223]
[1723759391932,0.05167773,57566.0,57560.0,0.043422]
[1723759392115,0.043418,57565.0,57560.0,0.043422]
[1723759392317,0.00826073,57566.0,57560.0,0.043422]
[1723759392318,0.00426073,57566.0,57560.0,0.043422]
[1723759392519,0.043419,57564.0,57560.0,0.043422]
[1723759393129,0.00426073,57566.0,57560.0,0.001]
[1723759393827,0.00026073,57566.0,57560.0,0.001]
[1723759394030,0.00226073,57566.0,57563.0,0.04342]
[1723759394536,0.00026073,57566.0,57563.0,0.04342]
[1723759395027,0.04342,57562.0,57560.0,0.003]
[1723759395234,0.04342,57562.0,57560.0,0.001]
[1723759395531,0.043418,57565.0,57559.0,0.404223]
[1723759396235,0.043419,57564.0,57559.0,0.404223]
[1723759396936,0.04342,57562.0,57559.0,0.404223]
[1723759397124,0.043423,57559.0,57554.0,0.045666]
[1723759397429,0.04342,57562.0,57554.0,0.045666]
[1723759397430,0.3608,57555.0,57554.0,0.043426]
[1723759397627,0.043423,57558.0,57554.0,0.043426]
[1723759398022,0.043421,57561.0,57559.0,0.001]
[1723759398228,0.043422,57560.0,57559.0,0.001]
[1723759398725,0.001,57558.0,57554.0,0.014]
[1723759399126,0.001,57558.0,57554.0,0.006]
[1723759399432,0.044423,57558.0,57554.0,0.006]
[1723759399637,0.043423,57558.0,57551.0,0.043428]
[1723759399935,0.043423,57558.0,57550.0,0.00026073]
[1723759400335,0.003,57560.0,57550.0,0.00026073]
[1723759400336,0.043424,57557.0,57553.0,0.043427]
[1723759400932,0.043425,57556.0,57553.0,0.043427]
[1723759401433,0.043427,57554.0,57550.0,0.00026073]
[1723759402029,0.043427,57554.0,57553.0,0.001]
[1723759402837,0.043427,57554.0,57550.0,0.00426073]
[1723759403232,0.043427,57553.0,57550.0,0.00426073]
[1723759403533,0.043427,57553.0,57550.0,0.00026073]
[1723759404134,0.043427,57553.0,57550.0,0.04368973]
[1723759404529,0.01104924,57556.0,57550.0,0.00026073]
[1723759404737,0.043429,57551.0,57550.0,0.00026073]
[1723759405049,0.043429,57551.0,57550.0,0.00426073]
[1723759405340,0.043429,57551.0,57550.0,0.00726073]
[1723759410038,0.3608,57558.0,57551.0,0.043429]
[1723759410239,0.3608,57558.0,57550.0,0.00726073]
[1723759410240,0.54181466,57558.0,57550.0,0.00726073]
[1723759410435,0.043429,57551.0,57550.0,0.00726073]
[1723759410741,0.404229,57551.0,57550.0,0.00726073]
[1723759411246,0.404229,57551.0,57550.0,0.00426073]
[1723759411740,0.043429,57551.0,57550.0,0.00426073]
[1723759412141,0.37181466,57558.0,57552.0,0.043428]
[1723759412342,0.043426,57555.0,57550.0,0.00726073]
[1723759412547,0.3608,57557.0,57550.0,0.00726073]
[1723759412548,0.043427,57553.0,57550.0,0.00726073]
[1723759412743,0.043429,57551.0,57550.0,0.00726073]
[1723759414043,0.043429,57551.0,57550.0,0.00426073]
[1723759414647,0.043429,57551.0,57541.0,0.3608]
[1723759414648,1.46208,57551.0,57541.0,0.3608]
[1723759414840,0.3608,57546.0,57541.0,0.3608]
[1723759415241,0.3708,57546.0,57541.0,0.3608]
[1723759415545,0.3608,57546.0,57541.0,0.3608]
[1723759415753,0.404232,57546.0,57541.0,0.3608]
[1723759415948,0.043432,57546.0,57541.0,0.3608]
[1723759417242,0.043432,57546.0,57541.0,0.3688]
[1723759417243,0.044432,57546.0,57541.0,0.3688]
[1723759419043,0.045432,57546.0,57541.0,0.3748]
[1723759419240,0.002,57546.0,57541.0,0.3748]
[1723759419541,0.043435,57544.0,57541.0,0.3748]
[1723759420037,0.043435,57543.0,57541.0,0.014]
[1723759420241,0.043435,57542.0,57541.0,0.014]
[1723759420650,0.043435,57542.0,57541.0,0.008]
[1723759420850,0.043438,57539.0,57538.0,1e-08]
[1723759421245,0.063438,57539.0,57538.0,1e-08]
[1723759421650,0.05487019,57539.0,57538.0,1e-08]
[1723759422148,1.17627019,57539.0,57538.0,1e-08]
[1723759422448,1.17827019,57539.0,57538.0,1e-08]
[1723759423258,1.18627019,57539.0,57538.0,1e-08]
[1723759424051,1.18827019,57539.0,57538.0,1e-08]
[1723759424258,1.18927019,57539.0,57538.0,1e-08]
[1723759424752,1.18627019,57539.0,57538.0,1e-08]
[1723759425051,1.19627019,57539.0,57538.0,1e-08]
[1723759425250,1.19627019,57539.0,57522.0,0.1639]
[1723759425251,0.2403,57536.0,57522.0,0.1639]
[1723759425449,0.043448,57525.0,57520.0,0.1703]
[1723759425948,0.3608,57529.0,57520.0,0.1703]
[1723759426154,0.04345,57524.0,57520.0,0.1703]
[1723759426352,0.04345,57523.0,57519.0,0.3608]
[1723759426552,0.00014003,57528.0,57519.0,0.00026073]
[1723759426553,0.404252,57520.0,57519.0,0.00026073]
[1723759426846,0.65325042,57520.0,57519.0,1e-08]
[1723759427254,1.61826242,57520.0,57519.0,1e-08]
[1723759427442,0.2403,57510.0,57500.0,0.01130889]
[1723759427647,0.043465,57503.0,57497.0,0.1718]
[1723759427849,0.043466,57502.0,57497.0,0.1718]
[1723759428054,0.3608,57505.0,57497.0,0.1718]
[1723759428252,0.3608,57498.0,57497.0,0.1718]
[1723759428448,0.36093566,57498.0,57497.0,0.1718]
[1723759429158,0.00013566,57498.0,57497.0,0.1718]
[1723759429752,0.00113566,57498.0,57493.0,0.1569]
[1723759429951,0.00213566,57498.0,57493.0,0.1569]
[1723759430559,0.00213566,57498.0,57492.0,0.00026073]
[1723759430950,0.043471,57495.0,57492.0,0.00026073]
[1723759432451,0.01349685,57498.0,57492.0,0.00026073]
[1723759432452,0.043472,57494.0,57492.0,0.00026073]
[1723759433054,0.043472,57493.0,57492.0,0.00026073]
[1723759433251,0.404272,57493.0,57492.0,0.00026073]
[1723759434456,0.002,57495.0,57492.0,0.00026073]
[1723759434857,0.001,57494.0,57492.0,0.00026073]
[1723759436364,0.043472,57493.0,57492.0,0.00026073]
[1723759438261,0.044472,57493.0,57492.0,0.00026073]
[1723759438957,0.045472,57493.0,57492.0,0.00026073]
[1723759440152,0.00198151,57493.0,57492.0,0.00026073]
[1723759441166,0.04545351,57493.0,57492.0,0.00026073]
[1723759441561,0.00198151,57493.0,57492.0,0.00026073]
[1723759442062,0.30575351,57493.0,57492.0,0.00026073]
[1723759443063,0.28575351,57493.0,57492.0,0.00026073]
[1723759443454,0.00198151,57493.0,57492.0,0.00026073]
[1723759444058,0.043463,57505.0,57492.0,0.60136073]
[1723759444252,0.2403,57499.0,57492.0,0.36106073]
[1723759444450,0.2403,57499.0,57492.0,0.00026073]
[1723759444451,0.3608,57493.0,57492.0,0.00026073]
[1723759444658,0.404272,57493.0,57492.0,0.00026073]
[1723759444862,0.674572,57493.0,57492.0,0.00026073]
[1723759445057,0.404272,57493.0,57492.0,0.00026073]
[1723759446652,0.283769,57498.0,57492.0,0.00026073]
[1723759446851,0.2403,57498.0,57492.0,0.00026073]
[1723759447063,0.3608,57496.0,57492.0,0.00026073]
[1723759447265,0.2403,57498.0,57492.0,0.00026073]
[1723759447459,0.25149762,57498.0,57492.0,0.00026073]
[1723759447659,0.27149762,57498.0,57492.0,0.00026073]
[1723759447860,0.043472,57493.0,57492.0,0.00026073]
[1723759448059,0.043472,57493.0,57492.0,0.00126073]
[1723759448365,0.043472,57493.0,57492.0,0.00326073]
[1723759449265,0.01119762,57498.0,57496.0,0.04347]
[1723759449462,0.404266,57502.0,57496.0,0.04347]
[1723759449763,0.2403,57499.0,57492.0,0.00326073]
[1723759450068,0.3608,57497.0,57492.0,0.00326073]
[1723759450463,0.3608,57497.0,57495.0,0.043471]
[1723759450767,0.043467,57501.0,57495.0,0.043471]
[1723759451570,0.002,57498.0,57495.0,0.043471]
[1723759451863,0.002,57498.0,57495.0,0.404271]
[1723759452058,0.002,57498.0,57492.0,0.00226073]
[1723759452260,0.2403,57499.0,57492.0,0.00026073]
[1723759452465,0.043472,57493.0,57492.0,0.00026073]
[1723759453763,0.043472,57493.0,57492.0,0.00126073]
[1723759453764,0.001,57493.0,57492.0,0.00126073]
[1723759453966,0.044472,57493.0,57492.0,0.00126073]
[1723759454383,0.001,57493.0,57492.0,0.00126073]
[1723759455166,0.3608,57498.0,57492.0,0.00026073]
[1723759455363,0.3608,57498.0,57492.0,0.00126073]
[1723759456056,0.043471,57495.0,57492.0,0.00126073]
[1723759456371,0.3608,57498.0,57493.0,0.05057939]
[1723759456568,0.3608,57498.0,57492.0,0.05184012]
[1723759457272,0.043472,57494.0,57492.0,0.05184012]
[1723759457461,0.043472,57493.0,57492.0,0.00126073]
[1723759457665,0.293772,57493.0,57492.0,0.00126073]
[1723759458062,0.043472,57493.0,57492.0,0.00126073]
[1723759458566,0.043472,57493.0,57492.0,0.00026073]
[1723759458971,0.043472,57493.0,57492.0,0.05129768]
[1723759459478,0.043472,57493.0,57487.0,0.1718]
[1723759459479,0.043474,57491.0,57488.0,0.05105294]
[1723759459665,0.043477,57487.0,57486.0,0.05105294]
[1723759459967,0.043479,57484.0,57483.0,0.06729497]
[1723759460176,0.3608,57486.0,57482.0,0.06729497]
[1723759460375,0.3608,57486.0,57481.0,0.06729497]
[1723759460376,0.043481,57482.0,57481.0,0.06729497]
[1723759461474,0.043481,57482.0,57473.0,0.53614]
[1723759461475,0.043481,57482.0,57477.0,0.1281624]
[1723759461660,0.043481,57482.0,57481.0,0.0680272]
[1723759462061,0.044481,57482.0,57481.0,0.0680272]
[1723759463166,0.045481,57482.0,57480.0,0.0680272]
[1723759463361,0.045481,57482.0,57479.0,0.0680272]
[1723759463362,0.043482,57480.0,57479.0,0.0680272]
[1723759463565,0.043485,57477.0,57473.0,0.53614]
[1723759463771,0.043486,57475.0,57473.0,0.54524497]
[1723759463968,0.0436617,57474.0,57473.0,0.37214497]
[1723759464173,0.0436617,57474.0,57473.0,0.3608]
[1723759464967,0.0436617,57474.0,57473.0,0.41182179]
[1723759465167,0.0436617,57474.0,57473.0,0.3608]
[1723759465569,0.0436617,57474.0,57467.0,0.06802462]
[1723759465570,0.043489,57471.0,57467.0,0.06802462]
[1723759465962,0.043489,57471.0,57468.0,0.06802462]
[1723759466162,0.04349,57470.0,57468.0,0.06802462]
[1723759466363,0.2403,57472.0,57469.0,0.05098799]
[1723759466578,0.2403,57472.0,57466.0,0.05098799]
[1723759466768,0.043491,57468.0,57464.0,0.05098799]
[1723759467073,0.043492,57467.0,57464.0,0.05098799]
[1723759467277,0.043492,57467.0,57463.0,0.05098799]
[1723759467577,0.043492,57467.0,57462.0,0.05098799]
[1723759467969,0.043492,57467.0,57461.0,0.41178799]
[1723759468169,0.043492,57467.0,57461.0,0.3608]
[1723759468678,0.044492,57467.0,57461.0,0.3608]
[1723759468880,0.044492,57467.0,57462.0,0.05098799]
[1723759469173,0.044492,57467.0,57461.0,0.3608]
[1723759469675,0.001,57467.0,57462.0,0.05098799]
[1723759469871,0.001,57467.0,57461.0,0.88288]
[1723759469872,0.001,57467.0,57464.0,0.05098799]
[1723759470072,0.001,57467.0,57461.0,0.3608]
[1723759470073,0.001,57467.0,57463.0,0.05098799]
[1723759470469,0.001,57467.0,57462.0,0.09448399]
[1723759470869,0.002,57467.0,57462.0,0.043496]